Cogmind - Beta 17 @@@ ROGUE MODE // 2026.07.13 @ 17:46:30 Player: Skysub Result: Destroyed by S-27 Virus with Autogun Performance ------------- Evolutions (3) 1500 Regions Visited (5) 1000 Robots Destroyed (7) 35 Value Destroyed (202) 202 Prototype IDs (2) 40 Alien Tech Used (0) 0 Bonus (7434) 7434 TOTAL SCORE: 10211 Bonus ------- Pacifist 834 Prayed to X0-1V1 5000 Major X0-1V1 Interference 1600 Cogmind --------- Core Integrity 0/700 Matter 86/150 Energy 100/100 System Corruption 1% Temperature Cool (0) Movement Flying (35) Location -7/Factory Parts ------- > --- POWER (1) -------- (None) > --- PROPULSION (5) --- VTOL Module > --- UTILITY (5) ------ Advanced Visual Processing Unit Improved Terrain Scan Processor Improved Propulsion Shielding > --- WEAPON (3) ------- (None) > --- INVENTORY (5) ---- Ion Engine Medium Storage Unit Improved Propulsion Shielding Improved Light Armor Plating Plasma Cutter Peak State ------------ > --- POWER ------------ (None) > --- PROPULSION ------- VTOL Module > --- UTILITY ---------- Advanced Visual Processing Unit Improved Terrain Scan Processor Improved Propulsion Shielding Hacking Suite X0-1V1's Piety Tracker > --- WEAPON ----------- (None) > --- INVENTORY -------- Ion Engine Medium Storage Unit Improved Propulsion Shielding Improved Light Armor Plating Grenade Launcher [Rating: 27] Favorites ----------- Power None Propulsion VTOL Module Flight Unit VTOL Module Utility Improved Propulsion Shielding Device X0-1V1's Piety Tracker Storage Medium Storage Unit Processor Advanced Visual Processing Unit Hackware Hacking Suite Protection Improved Propulsion Shielding Weapon Grenade Launcher Launcher Grenade Launcher Build | -11 -10 -9 -9 -8 -7 ------- Run | Yrd Mat Mat Min Mat Fac Slots Evolved 6 | . . 2 . 2 2 Power . | . . . . . . Propulsion 3 | . . 1 . 1 1 Utility 3 | . . 1 . 1 1 Weapon . | . . . . . . Parts Attached 14 | . 1 . 2 2 9 Power . | . . . . . . Engine . | . . . . . . Core . | . . . . . . Reactor . | . . . . . . Propulsion 1 | . . . . . 1 Treads . | . . . . . . Leg . | . . . . . . Wheel . | . . . . . . Hover . | . . . . . . Flight 1 | . . . . . 1 Utility 12 | . 1 . 2 2 7 Device 6 | . 1 . 2 . 3 Storage 1 | . . . . . 1 Processor 2 | . . . . 1 1 Hackware 1 | . . . . . 1 Protection 2 | . . . . 1 1 Artifact . | . . . . . . Weapon 1 | . . . . . 1 Energy Gun . | . . . . . . Energy Cannon . | . . . . . . Ballistic Gun . | . . . . . . Ballistic Cannon . | . . . . . . Launcher 1 | . . . . . 1 Special Weapon . | . . . . . . Impact Weapon . | . . . . . . Slashing Weapon . | . . . . . . Piercing Weapon . | . . . . . . Special Melee Weapon . | . . . . . . Unidentified Prototypes 2 | . 1 . 1 . . Parts Lost 7 | . . 1 . 1 5 Power . | . . . . . . Propulsion . | . . . . . . Utility 6 | . . 1 . 1 4 Weapon 1 | . . . . . 1 Highest Loss Streak 3 | . . 1 . 1 3 To Critical Strikes . | . . . . . . Average Backups 3 | . 2 3 4 5 4 Power . | . 1 1 1 1 1 Propulsion . | . . . . . . Utility 2 | . . 1 2 3 2 Weapon . | . . 1 1 1 . Tool/Special . | . . . . . . Unused Backups 3 | . . . . . 3 Power 1 | . . . . . 1 Propulsion . | . . . . . . Utility 1 | . . . . . 1 Weapon . | . . . . . . Tool/Special 1 | . . . . . 1 Average Slot Usage (%) 16 | . 9 3 6 19 25 Flight 1 | . . . . . 3 Device 5 | . 9 3 6 9 3 Processor 4 | . . . . 4 9 Protection 3 | . . . . 6 7 Peak Build Rating 27 | . 13 13 22 19 27 Average Rating 11 | . 9 1 11 15 13 On Entrance 5 | . . 13 . 14 6 Avg Prop Armor Cover (%) . | . . . . . . Naked Turns 71 | . 22 40 9 . . Heaviest Build 5 | . 1 1 2 3 5 Greatest Support 4 | 3 3 3 3 3 4 Greatest Overweight (x) 1 | . . . . . 1 Average Overweight (x) . | . . . . . . Largest Inventory Capacity 10 | 5 5 5 5 5 10 Average Capacity 5 | 5 5 5 5 5 5 Most Carried 5 | 1 3 4 5 5 5 Average Carried 4 | . 2 3 4 4 4 Final Capacity 5 | 5 5 5 5 5 5 Final Carried 5 | 1 3 4 5 5 5 Class Distribution -------------------- 100% | Mutant Dominant Class ---------------- Mutant | -10/Materials Mutant | -9/Materials Mutant | -9/Mines Mutant | -8/Materials Mutant | -7/Factory Resources | -11 -10 -9 -9 -8 -7 ----------- Run | Yrd Mat Mat Min Mat Fac Matter Collected 299 | 185 . . . . 114 Remotely . | . . . . . . Salvage Created 187 | . . . . . 187 Parts 10 | . . . . . 10 Haulers Intercepted . | . . . . . . Recyclers Shooed . | . . . . . . Parts Field Recycled . | . . . . . . Retrieved Matter . | . . . . . . Parts Self-Destructed . | . . . . . . Prevented . | . . . . . . Parts Restored . | . . . . . . Kills | -11 -10 -9 -9 -8 -7 ------- Run | Yrd Mat Mat Min Mat Fac Combat Hostiles Destroyed 5 | . . . . . 5 AOE 5 | . . . . . 5 Classes Destroyed 4 | . . . . . 4 Worker 1 | . . . . . 1 Recycler 1 | . . . . . 1 Swarmer 3 | . . . . . 3 Grunt 2 | . . . . . 2 Best Kill Streak 5 | . . . . . 5 Combat Bots Only 3 | . . . . . 3 Max Kills in Single Turn 2 | . . . . . 2 Gunslinging . | . . . . . . Exploded 2 | . . . . . 2 Melee . | . . . . . . Uniques/NPCs Destroyed . | . . . . . . Combat | -11 -10 -9 -9 -8 -7 -------- Run | Yrd Mat Mat Min Mat Fac Hostile Shots Fired 169 | . 15 11 9 28 106 Missed 69 | . 5 4 2 12 46 Hits 100 | . 10 7 7 16 60 Projectile 100 | . 10 7 7 16 60 Critical Strikes 2 | . . . . . 2 Damage Taken 1471 | . 147 92 88 233 911 Core 1231 | . 145 77 88 219 702 Absorbed by Shields 59 | . . . . . 59 Redirected to Shielding 25 | . . . . . 25 Core Remaining (%) 65 | 100 42 . 58 60 . Volleys Fired 4 | . . . . . 4 Largest 1 | . . . . . 1 Hottest 30 | . . . . . 30 Shots Fired 4 | . . . . . 4 Gun . | . . . . . . Cannon . | . . . . . . Launcher 4 | . . . . . 4 Special . | . . . . . . Kinetic . | . . . . . . Thermal . | . . . . . . Explosive 4 | . . . . . 4 Electromagnetic . | . . . . . . Robot Hit Streak 2 | . . . . . 2 Robot Miss Streak . | . . . . . . Penetration Max . | . . . . . . Secondary Targets . | . . . . . . Shots Hit Robots 2 | . . . . . 2 Core Hits 14 | . . . . . 14 Critical Kills . | . . . . . . Critical Parts Destroyed . | . . . . . . Critical Strikes . | . . . . . . Melee Attacks . | . . . . . . Impact . | . . . . . . Slashing . | . . . . . . Piercing . | . . . . . . Sneak Attacks . | . . . . . . Combat Hostiles . | . . . . . . Follow-up Attacks . | . . . . . . Damage Inflicted 703 | . 5 . . . 698 Guns . | . . . . . . Cannons . | . . . . . . Explosions 678 | . . . . . 678 Melee . | . . . . . . Ramming 25 | . 5 . . . 20 Kinetic . | . . . . . . Thermal . | . . . . . . Explosive 678 | . . . . . 678 Electromagnetic . | . . . . . . Impact . | . . . . . . Slashing . | . . . . . . Piercing . | . . . . . . Highest Corruption 1 | . . 1 1 . 1 Average Corruption 1 | . . 1 1 . 1 Corruption Purged . | . . . . . . Corruption Blocked . | . . . . . . Effects 1 | . . . . . 1 Message Errors 1 | . . . . . 1 Overload Shots . | . . . . . . Overflow Damage . | . . . . . . Projectiles . | . . . . . . Explosions . | . . . . . . Melee . | . . . . . . Knockbacks . | . . . . . . Impact . | . . . . . . Kinetic . | . . . . . . Secondary . | . . . . . . Self-Inflicted Damage 67 | . 2 . . . 65 Shots 2 | . . . . . 2 Rammed 4 | . 1 . . . 3 Targets Rammed 4 | . 1 . . . 3 Kicked . | . . . . . . Crushed . | . . . . . . Highest Temperature 3 | . . . . . 3 Average Temperature 3 | . . . . . 3 Received Heat Transfer 523 | . 30 36 48 117 292 Siege Activations . | . . . . . . Martial Activations . | . . . . . . Shielding Activations . | . . . . . . Robots Disrupted . | . . . . . . Combat Hostiles . | . . . . . . Robots Corrupted . | . . . . . . Combat Hostiles . | . . . . . . Parts Fried . | . . . . . . Impact Corruptions . | . . . . . . Robots Melted . | . . . . . . Combat Hostiles . | . . . . . . Parts Melted . | . . . . . . Heat Transferred . | . . . . . . Parts Sabotaged . | . . . . . . Parts Stolen . | . . . . . . Parts Stripped . | . . . . . . Power Chain Reactions . | . . . . . . Alert | -11 -10 -9 -9 -8 -7 ------- Run | Yrd Mat Mat Min Mat Fac Maximum Alert Level 1 | . . . . . 1 Low Security (%) 99 | 100 100 100 100 100 99 Level 1 . | . . . . . . Level 2 . | . . . . . . Level 3 . | . . . . . . Level 4 . | . . . . . . Level 5 . | . . . . . . High Security . | . . . . . . Max Security . | . . . . . . Peak Influence 206 | . 34 15 15 15 206 Initial 6 | . . 5 5 5 6 Average 36 | . 9 1 3 2 73 Influence Increases 389 | . 44 15 15 15 300 Destroy 0b10 Robot/C 100 | . . . . . 100 Destroy 0b10 Robot/NC 10 | . . . . . 10 Destroy Leader 10 | . . . . . 10 Successful Hack 28 | . 14 . . . 14 Disable Machine 30 | . . . . . 30 Destroy Structure 31 | . . . . . 31 Lose Combat Pursuer 180 | . 30 15 15 15 105 Influence Decreases 183 | . 30 14 15 15 109 Entered New Map 38 | . . 9 10 10 9 Time Decay 106 | . 30 . 5 5 66 Lost Part 39 | . . 5 . . 34 Squads Dispatched 10 | . . 2 . 4 4 Investigation 8 | . . 2 . 3 3 Extermination . | . . . . . . Reinforcement 1 | . . . . 1 . Assault . | . . . . . . Garrison 1 | . . . . . 1 Intercept . | . . . . . . Searches Triggered . | . . . . . . Construction Impeded . | . . . . . . Haulers Reinforced . | . . . . . . Active Scanning Responses . | . . . . . . Cargo Convoy Interrupts . | . . . . . . Stealth | -11 -10 -9 -9 -8 -7 --------- Run | Yrd Mat Mat Min Mat Fac Distress Signals 5 | . . 2 . 1 2 Communications Jammed . | . . . . . . Distress Signals . | . . . . . . Times Spotted 62 | . 9 10 3 16 24 Peak Tracking Total 14 | . 6 11 3 14 8 Tactical Retreats 7 | . 1 1 1 1 3 Traps | -11 -10 -9 -9 -8 -7 ------- Run | Yrd Mat Mat Min Mat Fac Traps Triggered 4 | . 2 . . . 2 Indirectly . | . . . . . . Trap Hack Attempts . | . . . . . . Triggered . | . . . . . . Disarmed . | . . . . . . Reprogrammed . | . . . . . . Reused . | . . . . . . Traps Extracted . | . . . . . . Installed . | . . . . . . Triggered . | . . . . . . Machines | -11 -10 -9 -9 -8 -7 ---------- Run | Yrd Mat Mat Min Mat Fac Machines Disabled 2 | . . . . . 2 Max in Single Turn 2 | . . . . . 2 Machines Repaired . | . . . . . . Machines Dismantled . | . . . . . . Machines Sabotaged . | . . . . . . Overloaded Fab Kills . | . . . . . . Hacking | -11 -10 -9 -9 -8 -7 --------- Run | Yrd Mat Mat Min Mat Fac Machines Accessed 11 | . 3 2 . 3 3 Terminals 10 | . 3 1 . 3 3 Fabricators . | . . . . . . Repair Stations . | . . . . . . Recycling Units . | . . . . . . Scanalyzers 1 | . . 1 . . . Garrison Access . | . . . . . . Total Hacks 40 | . 10 6 . 15 9 Successful 12 | . 3 3 . 4 2 Failed 28 | . 7 3 . 11 7 Catastrophic 6 | . 3 . . 3 . Database Lockouts . | . . . . . . Manual 30 | . 10 2 . 14 4 Terminals 37 | . 10 3 . 15 9 Fabricators . | . . . . . . Repair Stations . | . . . . . . Recycling Units . | . . . . . . Scanalyzers 3 | . . 3 . . . Garrison Access . | . . . . . . Terminal Hacks 6 | . 1 1 . 2 2 Emergency Access Points 1 | . 1 . . . . Terminal Index 2 | . . 1 . 1 . Zone Layout 3 | . . . . 1 2 Fabricator Hacks . | . . . . . . Repair Station Hacks . | . . . . . . Recycling Unit Hacks . | . . . . . . Scanalyzer 1 | . . 1 . . . Retrieve Study 1 | . . 1 . . . Garrison Access Hacks . | . . . . . . Unauthorized Hacks 5 | . 2 1 . 2 . Terminals 5 | . 2 1 . 2 . Botnet 5 | . 2 1 . 2 . Fabricators . | . . . . . . Repair Stations . | . . . . . . Recycling Units . | . . . . . . Scanalyzers . | . . . . . . Garrison Access . | . . . . . . Data Cores Recovered . | . . . . . . Used . | . . . . . . Hacking Detections 11 | . 3 2 . 3 3 Full Trace Events 11 | . 3 2 . 3 3 Feedback Events 1 | . . 1 . . . Corruption 1 | . . 1 . . . Feedback Blocked . | . . . . . . Robot Schematics Acquired . | . . . . . . Robots Built . | . . . . . . Authchips . | . . . . . . Time . | . . . . . . Total Robot Build Rating . | . . . . . . Part Schematics Acquired . | . . . . . . Parts Built . | . . . . . . Authchips . | . . . . . . Time . | . . . . . . Total Part Build Rating . | . . . . . . Part Studies Acquired 1 | . . 1 . . . Parts Repaired . | . . . . . . Time . | . . . . . . Parts Recycled . | . . . . . . Recycled Matter . | . . . . . . Retrieved Matter . | . . . . . . Retrieved Components . | . . . . . . Parts Scanalyzed . | . . . . . . Part Schematics Acquired . | . . . . . . Parts Damaged . | . . . . . . Bothacking | -11 -10 -9 -9 -8 -7 ------------ Run | Yrd Mat Mat Min Mat Fac Used RIF Installer . | . . . . . . Robots Hacked . | . . . . . . Non-combat . | . . . . . . Combat . | . . . . . . Robot Hacks Applied . | . . . . . . Relay Couplers Released . | . . . . . . Fabnet Peak Effective % . | . . . . . . Robots Rewired . | . . . . . . Allies Hacked . | . . . . . . Hacks Repelled . | . . . . . . Allies | -11 -10 -9 -9 -8 -7 -------- Run | Yrd Mat Mat Min Mat Fac Total Allies . | . . . . . . Largest Group . | . . . . . . Highest-Rated Group . | . . . . . . Highest-Rated Ally . | . . . . . . Total Orders . | . . . . . . Ally Attacks . | . . . . . . Total Damage . | . . . . . . Kills . | . . . . . . Allies Corrupted . | . . . . . . Allies Melted . | . . . . . . X0-1V1 Amusement Gains 57 | . 27 10 . . 20 Good Acts 2 | . . . 1 . 1 Bad Acts 10 | . 1 . . . 9 Intel | -11 -10 -9 -9 -8 -7 ------- Run | Yrd Mat Mat Min Mat Fac Active Infowar (turns) 232 | . . . 5 31 196 Optics 227 | . . . . 31 196 Sensors 5 | . . . 5 . . Seismic 10 | . . . . . 10 Robot Analysis Total . | . . . . . . Derelict Logs Recovered 1 | . . . 1 . . Drone Launches . | . . . . . . Drone Recoveries . | . . . . . . Exploration | -11 -10 -9 -9 -8 -7 ------------- Run | Yrd Mat Mat Min Mat Fac Turns Passed 434 | 12 85 47 39 55 196 Spaces Moved 798 | 22 151 92 70 101 362 Core 611 | 22 151 92 70 101 175 Treads . | . . . . . . Legs . | . . . . . . Wheels . | . . . . . . Hover . | . . . . . . Flight 187 | . . . . . 187 Fastest Speed 35 | 50 50 50 50 50 35 Average Speed 46 | 50 50 50 50 50 42 Slowest Speed 115 | 50 50 50 50 50 115 Overloaded Moves . | . . . . . . Propulsion Burnouts . | . . . . . . Robots Hopped 9 | . . . . . 9 Potential Cave-ins . | . . . . . . Cave-ins Triggered . | . . . . . . Exploration Rate (%) 18 | 3 37 17 22 15 19 Regions Visited 5 Branch Regions 1 Pre-discovered Areas 1 | . . . 1 . . Known Exits Taken . | . . . . . . Unknown Exits Taken 5 | 1 1 1 1 1 . Scrap Searched . | . . . . . . Spaces Dug 4 | . . . . . 4 Terrain Destroyed 45 | . . . . . 45 Melee . | . . . . . . Projectile . | . . . . . . AOE 45 | . . . . . 45 Terrain Rammed . | . . . . . . Walls Destroyed . | . . . . . . Machines Disabled . | . . . . . . Actions | -11 -10 -9 -9 -8 -7 --------- Run | Yrd Mat Mat Min Mat Fac Total 839 | 22 159 92 72 104 390 Wait 5 | . 5 . . . . Move 778 | 21 150 91 69 100 347 Hop 6 | . . . . . 6 Pick Up 7 | 1 2 1 . 1 2 Fast Attach 10 | . 1 . 2 2 5 Attach 6 | . . . . . 6 Detach 5 | . . . 1 . 4 Swap . | . . . . . . Drop 1 | . . . . 1 . Fire 4 | . . . . . 4 Melee . | . . . . . . Ram 4 | . 1 . . . 3 Kick . | . . . . . . Crush . | . . . . . . Escape Stasis 13 | . . . . . 13 Rewire . | . . . . . . Trap . | . . . . . . Miscellaneous . | . . . . . . Route ------- -11/Scrapyard -10/Materials (discovered 2 exits: *Mat / [*Min]) -9/Materials (discovered 2 exits: [*Min x2]) -9/Mines -8/Materials -7/Factory History --------- Turn | Location | Event 6 | -11/Scrapyard | Discovered new exit (range 15) 13 | -11/Scrapyard | Entered Materials 35 | -10/Materials | Prayed at D.C.S.S. Altar Unit 77 | -10/Materials | Discovered new exit (range 16) 83 | -10/Materials | X0-1V1 sent hostile S-10 Pest (x3) 92 | -10/Materials | Discovered new exit (range 13) 97 | -10/Materials | Core integrity fell below 50% 98 | -10/Materials | Entered another Materials area 98 | -9/Materials | Evolved 2 slots: Propulsion x1, Utility x1 139 | -9/Materials | Discovered new exit (range 12) 141 | -9/Materials | Discovered new exit (range 13) 145 | -9/Materials | Entered Mines 157 | -9/Mines | X0-1V1 activates XOMVISION 168 | -9/Mines | Learned location of Storage (-8) 170 | -9/Mines | Found a damaged Exp. Sensor Array with a note attached 171 | -9/Mines | Found Prototype Device 171 | -9/Mines | Identified Exp. Sensor Array 180 | -9/Mines | Discovered new exit (range 8) 184 | -9/Mines | Entered Materials 184 | -8/Materials | Evolved 2 slots: Propulsion x1, Utility x1 235 | -8/Materials | Discovered new exit (range 10) 239 | -8/Materials | Entered Factory 239 | -7/Factory | Evolved 2 slots: Propulsion x1, Utility x1 306 | -7/Factory | X0-1V1 sent you into danger 318 | -7/Factory | Build established: Mutant 345 | -7/Factory | Core integrity fell below 50% 366 | -7/Factory | Weapon slot count permanently improved by X0-1V1 (+1) 366 | -7/Factory | X0-1V1 sent hostile G-47 Trooper (x3) 387 | -7/Factory | Garrison activated, responded to threat 400 | -7/Factory | Core integrity fell below 20% 435 | -7/Factory | Destroyed by S-27 Virus with Autogun Last Messages --------------- 00401_ Field strength at 11. 00402_ Field strength at 5. 00402_ Stasis field depleted. 00405_ Hacking Suite destroyed. 00407_ Critical hit (Burn: +37). 00408_ X0-1V1: "The ol' switcheroo!" G-47 Trooper form resolidifies at new position. Form resolidifies at new position. 00408_ X0-1V1: "How much energy does one bot need, really?" (-10 energy) 00408_ K-01 Serf pushes H-55 Commando. 00413_ Acquired Plasma Cutter. 00416_ Y>BL GAI%XHJ9MFN>SE:K>Z6XB&E7MT >0XX/G 00430_ K-01 Serf pushes D-53 Grenadier. X0-1V1's Piety Tracker suddenly appears amidst shimmering waves of color. 00431_ K-01 Serf pushes D-53 Grenadier. 00431_ Sight range returns to normal. 00432_ K-01 Serf pushes D-53 Grenadier. 00435_ X0-1V1 laughs nastily! Map ----- +----------------------------------------------------+ | ?????" !????"???????????#######/########/####????? | | ????"" #???"??????????####?# + #????? | | ??"""" !#?? "??????????# !?# # """"""" #????? | | ??"""" #?? ""?" ??????# # # """"""" #????? | | ???""" #?? """" ?????# [ # + """"""" #????? | | ????"" #?? ? ?????# + # """"""" #????? | | ????? ### ??? ?????# # # ?????? | | ####### #########+########### # ! #????? | | ^ # #????? | | |% ###########????? | | % #??????????????? | | #??????????????? | | % #??????????????? | | ##### ##### ###############??????????????? | | ??# * # # ???????????????????????? | | ??# # # ! ?????????????????????????? | | ??# ## / ???????????????????????????? | | ??# # # "??????????????????????????? | | ??# = #T # ""?????????????????????????? | | ??# ##r #? ????????????????????????? | | ??# #u #??## ???????????????????????? | | ??# ! # ########################?????? | | ??# # s ?????? | | ??#### # ## ????? | | ?????##### #### u [[ ????? | | ?????????###??# @ [[ ????? | | ??????????????# k [[ ????? | | ??????????????######## ###### ????? | | ?????????????????????# #??????? """ "?????? | | ?????????????????????# k #??????????"??????????? | | ?????????????????????/u #?????????????????????? | | ???????????????????? # #?????????????????????? | | ??????????????????? # #?????????????????????? | | ?????????????????? ?+ #?????????????????????? | | ????????????????? ??###k###?????????????????????? | | ????????????????##?????# #???????????????????????? | | ???????????????????????#/#???????????????????????? | | ??????????????????????? H????????????????????????? | | ???????????????????????" ????????????????????????? | | ??????????????????????? ????????????????????????? | | ???????????????????????" ????????????????????????? | | ??????????????????????? ????????????????????????? | | ???????????????????????" ????????????????????????? | | ???????????????????????? ????????????????????????? | | ?????????????????????????????????????????????????? | | ?????????????????????????????????????????????????? | | ?????????????????????????????????????????????????? | | ?????????????????????????????????????????????????? | | ?????????????????????????????????????????????????? | | ?????????????????????????????????????????????????? | +----------------------------------------------------+ Best States ------------- Heat Dissipation 34 Energy Generation 5 Energy Capacity 100 Matter Stores 300 Matter Capacity 300 Sight Range 20 Terrain Scan Density 110 Propulsion Shielding 66 Evasion (%) 63 Offensive Hacking 10 Item Schematics ----------------- None Robot Schematics ------------------ None Fabricated ------------ Nothing Repaired ---------- Nothing Studied --------- Ion Engine | -9/Materials | Hacked Alien Tech Used ----------------- None Achievements -------------- Short-term Sacrifices Challenges ------------ None Game ------ Seed RefineryDispersionChainsaw Manual? 0 Play Time 00:10:22 Cumulative 324.9 hours Start 2026.07.13 @ 17:37:00 End 2026.07.13 @ 17:46:30 Sessions 1 Manual Loads 0 Difficulty Rogue Special Mode None Game No. 399 Rogue 399 Adventurer 0 Explorer 0 Win Type - Total 22 Types 14/0/3/1/1/0/1/1/0/1 Lore% 78 Gallery% 74 Achievement% 65 Wizard Run 0 Options --------- Layout 1 ASCII 0 Keyboard 1 Movement Arrows Keybinds 0 Fullscreen 2 Font 36/Smallcaps Map View 50x40 Zoom Use 0% Tactical HUD 1 Map Filters NONE Filters NONE Steam 1 RUN: 2fcd001e-30a7-48ea-b062-4fe62369a4d9